fUSD/lending_fUSD_20260221
["ID","MTS","AMOUNT","RATE_DAILY","PERIOD"]
[406250438,1771660262917,-500.0,0.00044383,120]
[406250439,1771660262926,-500.0,0.00044383,120]
[406250440,1771660262935,-500.0,0.00044383,120]
[406250441,1771660262944,-500.0,0.00044383,120]
[406250442,1771660262954,-582.75327494,0.00044383,120]
[406250443,1771660262963,-500.0,0.00044383,120]
[406250444,1771660262972,-500.0,0.00044383,120]
[406250445,1771660262981,-500.0,0.00044383,120]
[406250446,1771660262991,-500.0,0.00044383,120]
[406250447,1771660263000,-607.61037568,0.00044383,120]
[406250448,1771660263008,-500.0,0.00044383,120]
[406250449,1771660263018,-500.0,0.00044383,120]
[406250450,1771660263027,-500.0,0.00044383,120]
[406250451,1771660263037,-500.0,0.00044383,120]
[406250452,1771660263046,-500.0,0.00044383,120]
[406250453,1771660263056,-500.0,0.00044383,120]
[406250454,1771660263065,-500.0,0.00044383,120]
[406250455,1771660263074,-385.74842375,0.00044383,120]
[406250456,1771660263083,-524.95453479,0.00044383,120]
[406250457,1771660263092,-611.73479644,0.00044383,120]
[406250458,1771660263147,-500.0,0.00044383,120]
[406250459,1771660263156,-510.72124535,0.00044383,120]
[406250460,1771660263165,-595.48407475,0.00044383,120]
[406250461,1771660263174,-500.0,0.00044383,120]
[406250462,1771660263186,-506.65652122,0.00044383,120]
[406250463,1771660263196,-500.0,0.00044383,120]
[406250464,1771660263205,-511.18089232,0.00044383,120]
[406250465,1771660263213,-500.0,0.00044383,120]
[406250466,1771660263223,-500.0,0.00044383,120]
[406250467,1771660263232,-500.0,0.00044383,120]
[406250468,1771660263241,-500.0,0.00044383,120]
[406250469,1771660263251,-500.0,0.00044383,120]
[406250470,1771660263262,-500.0,0.00044383,120]
[406250471,1771660263271,-500.0,0.00044383,120]
[406250472,1771660263281,-500.0,0.00044383,120]
[406250473,1771660263290,-500.0,0.00044383,120]
[406250474,1771660263299,-500.0,0.00044383,120]
[406250475,1771660263308,-500.0,0.00044383,120]
[406250476,1771660263317,-378.8981236,0.00044383,120]
[406250477,1771660263327,-500.0,0.00044383,120]
[406250478,1771660263336,-500.0,0.00044383,120]
[406250479,1771660263345,-353.66384569,0.00044383,120]
[406250480,1771660263355,-512.74877511,0.00044383,120]
[406250481,1771660263364,-547.30162438,0.00044383,120]
[406250482,1771660263373,-500.0,0.00044383,120]
[406250483,1771660263383,-500.0,0.00044383,120]
[406250484,1771660263392,-500.0,0.00044383,120]
[406250485,1771660263401,-509.34850573,0.00044383,120]
[406250486,1771660263410,-500.0,0.00044383,120]
[406250487,1771660263419,-500.0,0.00044383,120]
[406250488,1771660263429,-500.0,0.00044383,120]
[406250489,1771660263438,-500.0,0.00044383,120]
[406250490,1771660263447,-488.59996574,0.00044383,120]
[406250491,1771660263457,-500.0,0.00044383,120]
[406250492,1771660263466,-508.97466326,0.00044383,120]
[406250493,1771660263475,-524.15358438,0.00044383,120]
[406250494,1771660263484,-500.0,0.00044383,120]
[406250495,1771660263493,-354.66664647,0.00044383,120]
[406250496,1771660263502,-500.0,0.00044383,120]
[406250497,1771660263511,-504.00985971,0.00044383,120]
[406250498,1771660263520,-500.0,0.00044383,120]
[406250499,1771660263529,-500.0,0.00044383,120]
[406250500,1771660263538,-499.39199322,0.00044383,120]
[406250501,1771660263547,-500.0,0.00044383,120]
[406250502,1771660263556,-500.0,0.00044383,120]
[406250503,1771660263565,-500.0,0.00044383,120]
[406250504,1771660263573,-580.90127889,0.00044383,120]
[406250505,1771660263583,-500.0,0.00044383,120]
[406250506,1771660263592,-500.0,0.00044383,120]
[406250507,1771660263601,-221.1746527,0.00044383,120]
[406250508,1771660263610,-500.0,0.00044383,120]
[406250509,1771660263619,-500.0,0.00044383,120]
[406250510,1771660263627,-500.0,0.00044383,120]
[406250511,1771660263636,-500.0,0.00044383,120]
[406250512,1771660263645,-500.0,0.00044383,120]
[406250513,1771660263654,-500.0,0.00044383,120]
[406250514,1771660263663,-337.87227258,0.00044383,120]
[406250515,1771660263672,-500.0,0.00044383,120]
[406250516,1771660263681,-500.0,0.00044383,120]
[406250517,1771660263690,-295.46463366,0.00044383,120]
[406250518,1771660263700,-500.0,0.00044383,120]
[406250519,1771660263709,-500.0,0.00044383,120]
[406250520,1771660263718,-500.0,0.00044383,120]
[406250521,1771660263728,-352.13385114,0.00044383,120]
[406250522,1771660263737,-500.0,0.00044383,120]
[406250523,1771660263746,-509.76189445,0.00044383,120]
[406250524,1771660263755,-500.0,0.00044383,120]
[406250525,1771660263764,-507.81951182,0.00044383,120]
[406250526,1771660263773,-500.0,0.00044383,120]
[406250527,1771660263782,-500.0,0.00044383,120]
[406250528,1771660263790,-500.0,0.00044383,120]
[406250529,1771660263799,-500.0,0.00044383,120]
[406250530,1771660263808,-531.65847934,0.00044383,120]
[406250531,1771660263817,-500.0,0.00044383,120]
[406250532,1771660263826,-245.18,0.00044383,120]
[406250533,1771660263835,-500.0,0.00044383,120]
[406250534,1771660263844,-500.0,0.00044383,120]
[406250535,1771660263853,-507.71638965,0.00044383,120]
[406250536,1771660263862,-500.0,0.00044383,120]
[406250537,1771660263871,-500.0,0.00044383,120]
[406250538,1771660263881,-500.0,0.00044383,120]
[406250539,1771660263890,-500.0,0.00044383,120]
[406250540,1771660263899,-500.0,0.00044383,120]
[406250541,1771660263908,-500.0,0.00044383,120]
[406250542,1771660263916,-500.0,0.00044383,120]
[406250543,1771660263925,-429.38948118,0.00044383,120]
[406250544,1771660263934,-504.91289601,0.00044383,120]
[406250545,1771660263944,-500.0,0.00044383,120]
[406250546,1771660263953,-500.0,0.00044383,120]
[406250547,1771660263962,-511.54134887,0.00044383,120]
[406250548,1771660263971,-500.0,0.00044383,120]
[406250549,1771660263980,-421.76114673,0.00044383,120]
[406250550,1771660263989,-514.96871014,0.00044383,120]
[406250551,1771660263999,-520.13485891,0.00044383,120]
[406250552,1771660264008,-500.0,0.00044383,120]
[406250553,1771660264017,-518.19248142,0.00044383,120]
[406250554,1771660264027,-500.0,0.00044383,120]
[406250555,1771660264036,-504.76489541,0.00044383,120]
[406250556,1771660264045,-500.0,0.00044383,10]
[406250557,1771660264054,-500.0,0.00044383,10]
[406250558,1771660264064,-501.61057856,0.00044383,10]
[406250559,1771660264073,-500.0,0.00044383,120]
[406250560,1771660264082,-500.0,0.00044383,120]
[406250561,1771660264091,-643.24374837,0.00044383,120]
[406250562,1771660264100,-500.0,0.00044383,120]
[406250563,1771660264109,-500.6606325,0.00044383,120]
[406250564,1771660264118,-500.0,0.00044383,120]
[406250565,1771660264127,-500.0,0.00044383,120]
[406250566,1771660264136,-500.0,0.00044383,120]
[406250567,1771660264145,-349.92020936,0.00044383,120]
[406250568,1771660264153,-506.64971029,0.00044383,120]
[406250569,1771660264163,-501.29979054,0.00044383,120]
[406250570,1771660264172,-510.97348352,0.00044383,120]
[406250571,1771660264186,-512.09400646,0.00044383,120]
[406250572,1771660264195,-500.0,0.00044383,120]
[406250573,1771660264203,-500.0,0.00044383,120]
[406250574,1771660264212,-515.91776719,0.00044383,120]
[406250575,1771660264223,-500.0,0.00044383,120]
[406250576,1771660264232,-500.0,0.00044383,120]
[406250577,1771660264241,-500.0,0.00044383,120]
[406250578,1771660264250,-500.0,0.00044383,120]
[406250579,1771660264262,-538.64856514,0.00044383,120]
[406250580,1771660264270,-277.79916877,0.00044383,120]
[406250581,1771660264279,-505.31062502,0.00044383,120]
[406250582,1771660264289,-508.07921762,0.00044383,120]
[406250583,1771660264298,-500.0,0.00044383,120]
[406250584,1771660264307,-500.0,0.00044383,120]
[406250585,1771660264316,-500.0,0.00044383,120]
[406250586,1771660264325,-376.91,0.00044383,120]
[406250587,1771660264334,-500.0,0.00044383,120]
[406250588,1771660264343,-360.39230445,0.00044383,120]
[406250589,1771660264352,-513.15981724,0.00044383,120]
[406250590,1771660264361,-500.73787735,0.00044383,120]
[406250591,1771660264370,-505.39074585,0.00044383,120]
[406250592,1771660264379,-500.0,0.00044383,120]
[406250593,1771660264388,-500.0,0.00044383,120]
[406250594,1771660264397,-500.0,0.00044383,120]
[406250595,1771660264407,-500.0,0.00044383,120]
[406250596,1771660264416,-500.0,0.00044383,120]
[406250597,1771660264425,-500.0,0.00044383,120]
[406250598,1771660264433,-500.0,0.00044383,120]
[406250599,1771660264443,-500.0,0.00044383,120]
[406250600,1771660264451,-235.51696488,0.00044383,120]
[406250601,1771660264460,-521.90517771,0.00044383,120]
[406250602,1771660264469,-531.08690278,0.00044383,120]
[406250603,1771660264478,-500.0,0.00044383,120]
[406250604,1771660264487,-523.3139264,0.00044383,120]
[406250605,1771660264496,-500.0,0.00044383,120]
[406250606,1771660264505,-500.0,0.00044383,120]
[406250607,1771660264514,-500.0,0.00044383,120]
[406250608,1771660264523,-541.16634791,0.00044383,120]
[406250609,1771660264532,-514.68514592,0.00044383,120]
[406250610,1771660264541,-500.0,0.00044383,120]
[406250611,1771660264550,-508.51087845,0.00044383,120]
[406250612,1771660264559,-513.60596892,0.00044383,120]
[406250613,1771660264568,-502.96756459,0.00044383,120]
[406250614,1771660264577,-500.0,0.00044383,120]
[406250615,1771660264586,-500.0,0.00044383,120]
[406250616,1771660264595,-500.0,0.00044383,120]
[406250617,1771660264604,-500.0,0.00044383,120]
[406250618,1771660264613,-520.65365616,0.00044383,120]
[406250619,1771660264622,-500.0,0.00044383,120]
[406250620,1771660264631,-500.0,0.00044383,120]
[406250621,1771660264640,-500.0,0.00044383,120]
[406250622,1771660264650,-500.0,0.00044383,120]
[406250623,1771660264659,-500.0,0.00044383,120]
[406250624,1771660264668,-500.0,0.00044383,120]
[406250625,1771660264677,-500.0,0.00044383,120]
[406250626,1771660264686,-500.0,0.00044383,120]
[406250627,1771660264695,-500.0,0.00044383,120]
[406250628,1771660264704,-283.91004716,0.00044383,120]
[406250629,1771660264713,-500.0,0.00044383,120]
[406250630,1771660264723,-500.0,0.00044383,120]
[406250631,1771660264732,-508.39275523,0.00044383,120]
[406250632,1771660264741,-513.4815414,0.00044383,120]
[406250633,1771660264750,-510.94188567,0.00044383,120]
[406250634,1771660264759,-490.72496363,0.00044383,120]
[406250635,1771660264768,-504.46969296,0.00044383,120]
[406250636,1771660264777,-511.9510739,0.00044383,120]
[406250637,1771660264785,-514.26535848,0.00044383,120]
[406250638,1771660264794,-690.43,0.00044383,120]
[406250639,1771660264803,-690.43,0.00044383,120]
[406250640,1771660264812,-690.43,0.00044383,120]
[406250641,1771660264821,-690.43,0.00044383,120]
[406250642,1771660264830,-690.43,0.00044383,120]
[406250643,1771660264839,-690.43,0.00044383,120]
[406250644,1771660264848,-690.43,0.00044383,120]
[406250645,1771660264857,-690.43,0.00044383,120]
[406250646,1771660264866,-690.43,0.00044383,120]
[406250647,1771660264875,-690.43,0.00044383,120]
[406250648,1771660264884,-690.43,0.00044383,120]
[406250649,1771660264893,-690.43,0.00044383,120]
[406250650,1771660264902,-690.43,0.00044383,120]
[406250651,1771660264910,-690.43,0.00044383,120]
[406250652,1771660264920,-690.43,0.00044383,120]
[406250653,1771660264929,-690.43,0.00044383,120]
[406250654,1771660264938,-690.43,0.00044383,120]
[406250655,1771660264947,-690.43,0.00044383,120]
[406250656,1771660264956,-690.43,0.00044383,120]
[406250657,1771660264965,-690.43,0.00044383,120]
[406250658,1771660264974,-690.43,0.00044383,120]
[406250659,1771660264983,-690.43,0.00044383,120]
[406250660,1771660264991,-690.43,0.00044383,120]
[406250661,1771660265000,-690.49719055,0.00044383,120]
[406250662,1771660265010,-500.0,0.00044383,120]
[406250663,1771660265018,-500.0,0.00044383,120]
[406250664,1771660265027,-500.0,0.00044383,120]
[406250665,1771660265036,-500.0,0.00044383,120]
[406250666,1771660265045,-500.0,0.00044383,120]
[406250667,1771660265054,-500.0,0.00044383,120]
[406250668,1771660265063,-500.0,0.00044383,120]
[406250669,1771660265072,-500.0,0.00044383,120]
[406250670,1771660265081,-500.0,0.00044383,120]
[406250671,1771660265090,-500.0,0.00044383,120]
[406250672,1771660265099,-500.0,0.00044383,120]
[406250673,1771660265108,-500.0,0.00044383,120]
[406250674,1771660265117,-477.95935272,0.00044383,120]
[406250675,1771660265126,-500.0,0.00044383,120]
[406250676,1771660265135,-500.0,0.00044383,120]
[406250677,1771660265144,-500.0,0.00044383,120]
[406250678,1771660265154,-500.0,0.00044383,120]
[406250679,1771660265163,-500.0,0.00044383,120]
[406250680,1771660265172,-500.0,0.00044383,120]
[406250681,1771660265185,-500.0,0.00044383,120]
[406250682,1771660265194,-500.0,0.00044383,120]
[406250683,1771660265203,-500.0,0.00044383,120]
[406250684,1771660265212,-500.0,0.00044383,120]
[406250685,1771660265222,-500.0,0.00044383,120]
[406250686,1771660265231,-500.0,0.00044383,120]
[406250687,1771660265240,-500.0,0.00044383,120]
[406250688,1771660265250,-500.0,0.00044383,120]
[406250689,1771660265263,-500.0,0.00044383,120]
[406250690,1771660265272,-500.0,0.00044383,120]
[406250691,1771660265281,-500.0,0.00044383,120]
[406250692,1771660265290,-500.0,0.00044383,120]
[406250693,1771660265299,-500.0,0.00044383,120]
[406250694,1771660265308,-500.0,0.00044383,120]
[406250695,1771660265317,-503.84187039,0.00044383,120]
[406250696,1771660265326,-500.0,0.00044383,120]
[406250697,1771660265335,-500.0,0.00044383,120]
[406250698,1771660265344,-500.0,0.00044383,120]
[406250699,1771660265353,-500.0,0.00044383,120]
[406250700,1771660265362,-500.0,0.00044383,120]
[406250701,1771660265371,-578.45903965,0.00044383,120]
[406250702,1771660265380,-500.0,0.00044383,120]
[406250703,1771660265389,-500.0,0.00044383,120]
[406250704,1771660265398,-500.0,0.00044383,120]
[406250705,1771660265407,-500.0,0.00044383,120]
[406250706,1771660265416,-468.26877083,0.00044383,120]
[406250707,1771660265425,-500.0,0.00044383,120]
[406250708,1771660265434,-500.0,0.00044383,120]
[406250709,1771660265443,-500.0,0.00044383,120]
[406250710,1771660265451,-500.0,0.00044383,120]
[406250711,1771660265460,-245.18,0.00044383,120]
[406250712,1771660265469,-500.0,0.00044383,120]
[406250713,1771660265478,-500.0,0.00044383,120]
[406250714,1771660265487,-500.0,0.00044383,120]
[406250715,1771660265496,-403.6,0.00044383,120]
[406250716,1771660265505,-500.0,0.00044383,120]
[406250717,1771660265513,-500.0,0.00044383,120]
[406250718,1771660265522,-500.0,0.00044383,120]
[406250719,1771660265531,-500.0,0.00044383,120]
[406250720,1771660265540,-500.0,0.00044383,120]
[406250721,1771660265549,-500.0,0.00044383,120]
[406250722,1771660265559,-368.0,0.00044383,120]
[406250723,1771660265567,-500.0,0.00044383,120]
[406250724,1771660265577,-500.0,0.00044383,120]
[406250725,1771660265586,-500.0,0.00044383,120]
[406250726,1771660265595,-500.0,0.00044383,120]
[406250727,1771660265604,-500.0,0.00044383,30]
[406250728,1771660265613,-500.0,0.00044383,120]
[406250729,1771660265622,-500.0,0.00044383,30]
[406250730,1771660265631,-500.0,0.00044383,120]
[406250731,1771660265640,-500.0,0.00044383,30]
[406250732,1771660265649,-500.0,0.00044383,120]
[406250733,1771660265659,-500.0,0.00044383,30]
[406250734,1771660265668,-500.0,0.00044383,120]
[406250735,1771660265677,-447.84,0.00044383,30]
[406250736,1771660265686,-500.0,0.00044383,120]
[406250737,1771660265695,-500.0,0.00044383,120]
[406250738,1771660265704,-500.0,0.00044383,120]
[406250739,1771660265713,-500.0,0.00044383,120]
[406250740,1771660265722,-500.0,0.00044383,120]
[406250741,1771660265731,-500.0,0.00044383,120]
[406250742,1771660265740,-500.0,0.00044383,120]
[406250743,1771660265750,-500.0,0.00044383,120]
[406250744,1771660265759,-500.0,0.00044383,120]
[406250745,1771660265768,-500.0,0.00044383,120]
[406250746,1771660265777,-621.381853,0.00044383,120]
[406250747,1771660265786,-500.0,0.00044383,120]
[406250748,1771660265795,-500.0,0.00044383,120]
[406250749,1771660265804,-500.0,0.00044383,120]
[406250750,1771660265813,-500.0,0.00044383,120]
[406250751,1771660265822,-500.0,0.00044383,120]
[406250752,1771660265831,-500.0,0.00044383,120]
[406250753,1771660265840,-500.0,0.00044383,120]
[406250754,1771660265849,-500.0,0.00044383,120]
[406250755,1771660265857,-596.60638922,0.00044383,120]
[406250756,1771660265867,-659.21,0.00044383,120]
[406250757,1771660265876,-659.21,0.00044383,120]
[406250758,1771660265885,-659.21,0.00044383,120]
[406250759,1771660265894,-659.21,0.00044383,120]
[406250760,1771660265903,-659.21,0.00044383,120]
[406250761,1771660265912,-659.21,0.00044383,120]
[406250762,1771660265921,-659.21,0.00044383,120]
[406250763,1771660265930,-659.21,0.00044383,120]
[406250764,1771660265939,-659.21,0.00044383,120]
[406250765,1771660265948,-659.21,0.00044383,120]
[406250766,1771660265958,-659.21,0.00044383,120]
[406250767,1771660265967,-659.21,0.00044383,120]
[406250768,1771660265977,-659.21,0.00044383,120]
[406250769,1771660265987,-659.21,0.00044383,120]
[406250770,1771660265996,-659.21,0.00044383,120]
[406250771,1771660266006,-659.21,0.00044383,120]
[406250772,1771660266016,-659.21,0.00044383,120]
[406250773,1771660266025,-659.21,0.00044383,120]
[406250774,1771660266034,-659.21,0.00044383,120]
[406250775,1771660266043,-659.21,0.00044383,120]
[406250776,1771660266052,-659.21,0.00044383,120]
[406250777,1771660266062,-659.21,0.00044383,120]
[406250778,1771660266071,-659.21,0.00044383,120]
[406250779,1771660266080,-659.30375454,0.00044383,120]
[406250780,1771660266089,-446.1024735,0.00044383,120]
[406250781,1771660266099,-703.58,0.00044383,120]
[406250782,1771660266108,-703.58,0.00044383,120]
[406250783,1771660266117,-703.58,0.00044383,120]
[406250784,1771660266126,-703.58,0.00044383,120]
[406250785,1771660266135,-703.58,0.00044383,120]
[406250786,1771660266145,-703.58,0.00044383,120]
[406250787,1771660266154,-703.58,0.00044383,120]
[406250788,1771660266164,-703.58,0.00044383,120]
[406250789,1771660266173,-703.58,0.00044383,120]
[406250790,1771660266185,-703.58,0.00044383,120]
[406250791,1771660266194,-703.58,0.00044383,120]
[406250792,1771660266203,-703.58,0.00044383,120]
[406250793,1771660266212,-703.58,0.00044383,120]
[406250794,1771660266222,-703.58,0.00044383,120]
[406250795,1771660266231,-703.58,0.00044383,120]
[406250796,1771660266240,-703.58,0.00044383,120]
[406250797,1771660266249,-703.58,0.00044383,120]
[406250798,1771660266261,-703.58,0.00044383,120]
[406250799,1771660266270,-703.58,0.00044383,120]
[406250800,1771660266279,-703.58,0.00044383,120]
[406250801,1771660266289,-703.58,0.00044383,120]
[406250802,1771660266298,-703.58,0.00044383,120]
[406250803,1771660266307,-703.58,0.00044383,120]
[406250804,1771660266317,-703.7685026,0.00044383,120]
[406250805,1771660266326,-280.224296,0.00044383,2]
[406250806,1771660266336,-280.224296,0.00044383,2]
[406250807,1771660266345,-280.224296,0.00044383,2]
[406250808,1771660266355,-280.224296,0.00044383,2]
[406250809,1771660266365,-160.339973,0.00044383,120]
[406250810,1771660266375,-151.0,0.00044383,120]
[406250811,1771660266384,-259.340493,0.00044383,120]
[406250812,1771660266393,-257.98069025,0.00044383,120]
[406250813,1771660266403,-1165.660671,0.00044383,120]
[406250814,1771660266412,-1165.660671,0.00044383,120]
[406250815,1771660266421,-1165.660671,0.00044383,120]
[406250816,1771660266431,-1165.660671,0.00044383,120]
[406250817,1771660266440,-151.0,0.00044383,120]
[406250818,1771660266449,-151.0,0.00044383,90]
[406250819,1771660266459,-1111.53,0.00044383,120]
[406250820,1771660266470,-1111.53,0.00044383,120]
[406250821,1771660266479,-1111.53,0.00044383,120]
[406250822,1771660266489,-1111.53,0.00044383,120]
[406250823,1771660266499,-1111.53,0.00044383,120]
[406250824,1771660266508,-1111.53,0.00044383,120]
[406250825,1771660266518,-1111.53,0.00044383,120]
[406250826,1771660266528,-1111.53,0.00044383,120]
[406250827,1771660266537,-1111.53,0.00044383,120]
[406250828,1771660266547,-1111.53,0.00044383,120]
[406250829,1771660266556,-1111.53,0.00044383,120]
[406250830,1771660266565,-1111.53,0.00044383,120]
[406250831,1771660266575,-151.0,0.00044383,120]
[406250832,1771660266584,-1111.53,0.00044383,120]
[406250833,1771660266594,-1111.53,0.00044383,120]
[406250834,1771660266603,-1111.53,0.00044383,120]
[406250835,1771660266613,-1111.53,0.00044383,120]
[406250836,1771660266622,-1111.53,0.00044383,120]
[406250837,1771660266632,-1111.53,0.00044383,120]
[406250838,1771660266641,-1111.53,0.00044383,120]
[406250839,1771660266651,-1111.53,0.00044383,120]
[406250840,1771660266660,-1111.53,0.00044383,120]
[406250841,1771660266670,-1111.53,0.00044383,120]
[406250842,1771660266680,-1111.53,0.00044383,120]
[406250843,1771660266689,-1111.69063718,0.00044383,120]
[406250844,1771660266699,-152.180498,0.00044383,120]
[406250845,1771660266708,-151.0,0.00044383,120]
[406250846,1771660266717,-151.0,0.00044383,120]
[406250847,1771660266727,-151.0,0.00044383,120]
[406250848,1771660266736,-151.0,0.00044383,120]
[406250849,1771660266745,-151.0,0.00044383,120]
[406250850,1771660266754,-151.0,0.00044383,120]
[406250851,1771660266763,-500.0,0.00044383,120]
[406250852,1771660266773,-500.0,0.00044383,120]
[406250853,1771660266783,-500.0,0.00044383,120]
[406250854,1771660266792,-500.0,0.00044383,120]
[406250855,1771660266801,-500.0,0.00044383,120]
[406250856,1771660266810,-500.0,0.00044383,120]
[406250857,1771660266819,-500.0,0.00044383,120]
[406250858,1771660266828,-500.0,0.00044383,120]
[406250859,1771660266837,-500.0,0.00044383,120]
[406250860,1771660266847,-500.0,0.00044383,120]
[406250861,1771660266856,-500.0,0.00044383,120]
[406250862,1771660266866,-500.0,0.00044383,120]
[406250863,1771660266875,-500.0,0.00044383,120]
[406250864,1771660266884,-500.0,0.00044383,120]
[406250865,1771660266894,-370.31455071,0.00044383,120]
[406250866,1771660266903,-151.0,0.00044383,120]
[406250867,1771660266912,-151.0,0.00044383,120]
[406250868,1771660266922,-151.0,0.00044383,120]
[406250869,1771660266931,-151.0,0.00044383,120]
[406250870,1771660266940,-268.091694,0.00044383,120]
[406250871,1771660266950,-151.0,0.00044383,7]
[406250872,1771660266959,-151.0,0.00044383,120]
[406250873,1771660266969,-151.0,0.00044383,120]
[406250874,1771660266978,-151.791813,0.00044383,120]
[406250875,1771660266988,-151.0,0.00044383,120]
[406250876,1771660266999,-448.447899,0.00044383,120]
[406250877,1771660267009,-448.447899,0.00044383,120]
[406250878,1771660267019,-169.139463,0.00044383,7]
[406250879,1771660267028,-448.447899,0.00044383,120]
[406250880,1771660267038,-169.139463,0.00044383,7]
[406250881,1771660267047,-448.447899,0.00044383,120]
[406250882,1771660267057,-169.139463,0.00044383,7]
[406250883,1771660267067,-169.139463,0.00044383,7]
[406250884,1771660267077,-151.0,0.00044383,120]
[406250885,1771660267087,-151.0,0.00044383,120]
[406250886,1771660267097,-151.0,0.00044383,31]
[406250887,1771660267107,-738.0,0.00044383,30]
[406250888,1771660267116,-842.0,0.00044384,120]
[406250889,1771660267126,-200.0,0.00044384,120]
[406250890,1771660267136,-200.0,0.00044384,120]
[406250891,1771660267146,-189.68,0.00044384,120]
[406250892,1771660267155,-202.66,0.000444,14]
[406250893,1771660267164,-150.0,0.000444,120]
[406250894,1771660267175,-150.0,0.000444,120]
[406250895,1771660267189,-150.0,0.000444,120]
[406250896,1771660267199,-150.0,0.000444,120]
[406250897,1771660267209,-164.17122,0.0004441,120]
[406250898,1771660267219,-164.17122,0.0004441,120]
[406250899,1771660267228,-582.96406686,0.00044414,10]
[406250900,1771660267238,-150.0,0.00044418,30]
[406250901,1771660267249,-5000.0,0.00044419,30]
[406250902,1771660267260,-2332.24,0.00044455,120]
[406250903,1771660267270,-150.0,0.00044459,30]
[406250904,1771660267280,-150.0,0.00044459,30]
[406250905,1771660267290,-152.0,0.000445,120]
[406250906,1771660267300,-152.0,0.000445,120]
[406250907,1771660267310,-2400.0,0.000445,16]
[406250908,1771660267320,-150.0,0.00044508,30]
[406250909,1771660267329,-150.0,0.00044535,30]
[406250910,1771660267339,-150.0,0.00044547,30]
[406250911,1771660267349,-150.0,0.00044598,30]
[406250912,1771660267358,-2400.0,0.000446,16]
[406250913,1771660267368,-150.0,0.00044618,30]
[406250914,1771660267378,-1014.91673742,0.0004462,14]
[406250915,1771660267388,-842.0,0.00044658,120]
[406250916,1771660267398,-150.0,0.00044663,30]
[406250917,1771660267409,-150.0,0.00044663,30]
[406250918,1771660267419,-580.0,0.00044666,2]
[406250919,1771660267429,-150.0,0.00044688,30]
[406250920,1771660267439,-580.4534,0.000447,120]
[406250921,1771660267448,-2400.0,0.000447,16]
[406250922,1771660267458,-150.0,0.00044701,30]
[406250923,1771660267468,-194.5698039,0.00044722,2]
[406250924,1771660267477,-1160.0,0.00044734,60]
[406250925,1771660267488,-5547.13581038,0.00044765,30]
[406250926,1771660267498,-5752.37983536,0.00044765,31]
[406250927,1771660267508,-257.91778498,0.00044766,30]
[406250928,1771660267519,-267.46074303,0.00044766,31]
[406250929,1771660267529,-5158.35569965,0.00044766,30]
[406250930,1771660267539,-5349.21486054,0.00044766,31]
[406250931,1771660267548,-151.6923127,0.00044771,2]
[406250932,1771660267558,-280.224296,0.00044771,2]
[406250933,1771660267570,-280.224296,0.00044771,2]
[406250934,1771660267580,-280.224296,0.00044771,2]
[406250935,1771660267589,-280.224296,0.00044771,2]
[406250936,1771660267599,-150.0,0.00044777,30]
[406250937,1771660267609,-248.71531821,0.00044779,60]